bitfinex/quotes_BTCUSD_20250604
["timestamp","ask_amount","ask_price","bid_price","bid_amount"]
[1749016644049,1.79621849,105380.0,105370.0,0.62388]
[1749016644275,1.78286422,105380.0,105370.0,0.62388]
[1749016644501,1.78086422,105380.0,105370.0,0.62388]
[1749016644728,1.79863501,105380.0,105370.0,0.62388]
[1749016644985,1.78386422,105380.0,105370.0,0.62488]
[1749016645205,2.98814367,105380.0,105370.0,0.62488]
[1749016645393,2.97033257,105380.0,105370.0,0.62388]
[1749016645653,2.97999659,105380.0,105370.0,0.62488]
[1749016645861,2.97333257,105380.0,105370.0,0.62488]
[1749016646281,3.03122756,105380.0,105370.0,0.62488]
[1749016646525,3.03122756,105380.0,105360.0,0.01487365]
[1749016646526,2.9756957,105380.0,105360.0,0.01487365]
[1749016646738,1.31476299,105370.0,105360.0,0.01487365]
[1749016646958,1.34159173,105370.0,105360.0,0.01487365]
[1749016647171,1.32382661,105370.0,105360.0,0.01487365]
[1749016647387,1.31476299,105370.0,105360.0,0.01487365]
[1749016647595,1.33252813,105370.0,105360.0,0.01487365]
[1749016647811,1.34324499,105370.0,105360.0,0.30435365]
[1749016648025,1.36101022,105370.0,105360.0,0.30435365]
[1749016648240,0.1557363,105370.0,105360.0,0.30435365]
[1749016648452,1.34324499,105370.0,105360.0,0.30535365]
[1749016648876,1.34324499,105370.0,105360.0,0.30435365]
[1749016649144,0.94740876,105370.0,105360.0,0.30435365]
[1749016649380,0.94840876,105370.0,105360.0,0.30535365]
[1749016649602,1.34424499,105370.0,105360.0,0.30535365]
[1749016650029,1.37310395,105370.0,105360.0,0.91287365]
[1749016650244,1.39086952,105370.0,105360.0,0.91287365]
[1749016650427,1.37310395,105370.0,105360.0,0.91287365]
[1749016650882,1.36201637,105370.0,105360.0,0.91287365]
[1749016651116,1.34424499,105370.0,105360.0,0.91287365]
[1749016653553,1.35360256,105370.0,105360.0,0.91287365]
[1749016653979,1.35360256,105370.0,105360.0,0.53475365]
[1749016654213,1.35360256,105370.0,105360.0,0.91287365]
[1749016654427,1.35360256,105370.0,105360.0,0.89804812]
[1749016654820,1.37137514,105370.0,105360.0,0.89804812]
[1749016655034,1.35360256,105370.0,105360.0,0.89804812]
[1749016655448,1.37137514,105370.0,105360.0,0.89804812]
[1749016656076,1.35360256,105370.0,105360.0,0.89804812]
[1749016656745,1.37137514,105370.0,105360.0,0.89804812]
[1749016656936,1.35360256,105370.0,105360.0,0.89804812]
[1749016657354,1.35360256,105370.0,105360.0,0.91287404]
[1749016658199,1.37137514,105370.0,105360.0,0.91287404]
[1749016658410,1.35360256,105370.0,105360.0,0.91287404]
[1749016658823,1.37137515,105370.0,105360.0,0.91287404]
[1749016659026,1.37137519,105370.0,105360.0,0.91287404]
[1749016659264,1.35360256,105370.0,105360.0,0.91287404]
[1749016659868,1.37137518,105370.0,105360.0,0.91287404]
[1749016660073,1.35360256,105370.0,105360.0,0.91287404]
[1749016660477,1.37137513,105370.0,105360.0,0.91287404]
[1749016660684,1.35360256,105370.0,105360.0,0.91287404]
[1749016660882,1.37137509,105370.0,105360.0,0.91287404]
[1749016661087,1.35360256,105370.0,105360.0,0.91287404]
[1749016661492,1.37137491,105370.0,105360.0,0.91287404]
[1749016661703,1.35360256,105370.0,105360.0,0.91287404]
[1749016662317,1.36266939,105370.0,105360.0,0.91287404]
[1749016663179,1.36266939,105370.0,105360.0,0.89804812]
[1749016663589,1.38044161,105370.0,105360.0,0.89804812]
[1749016664065,1.38044161,105370.0,105360.0,0.51992812]
[1749016664360,1.36266939,105370.0,105360.0,0.89800812]
[1749016664587,1.38044085,105370.0,105360.0,0.89800812]
[1749016664813,1.38710515,105370.0,105360.0,0.89800812]
[1749016665043,1.36933368,105370.0,105360.0,0.89800812]
[1749016665283,1.3626728,105370.0,105360.0,0.89800812]
[1749016665521,1.36933675,105370.0,105360.0,0.89800812]
[1749016666218,1.36933675,105370.0,105360.0,0.2606264]
[1749016666434,1.3626728,105370.0,105360.0,0.6387064]
[1749016667145,1.3616728,105370.0,105360.0,0.6387064]
[1749016667364,1.37944323,105370.0,105360.0,0.6387064]
[1749016667573,1.3686728,105370.0,105360.0,0.6397064]
[1749016667791,1.38321365,105370.0,105350.0,0.00211218]
[1749016668014,1.52750869,105360.0,105350.0,0.00211218]
[1749016668260,1.63243323,105360.0,105350.0,0.29155218]
[1749016668533,1.67868616,105360.0,105350.0,0.30637926]
[1749016668751,1.66091623,105360.0,105350.0,0.30637926]
[1749016669006,1.67868604,105360.0,105350.0,0.30637926]
[1749016669263,1.66091623,105360.0,105350.0,0.30637926]
[1749016669759,1.66191623,105360.0,105350.0,0.30637926]
[1749016669983,1.66191623,105360.0,105350.0,0.91493926]
[1749016670438,1.66191623,105360.0,105350.0,0.91393926]
[1749016670894,1.68268606,105360.0,105350.0,0.91393926]
[1749016671119,1.66491623,105360.0,105350.0,0.91393926]
[1749016672201,1.68268603,105360.0,105350.0,0.91393926]
[1749016672421,1.66491623,105360.0,105350.0,0.91393926]
[1749016672644,1.69267059,105360.0,105350.0,0.91393926]
[1749016673071,1.71044035,105360.0,105350.0,0.91393926]
[1749016673303,1.69269059,105360.0,105350.0,0.89911218]
[1749016673520,1.71046036,105360.0,105350.0,0.89911218]
[1749016673732,1.69269059,105360.0,105350.0,0.89911218]
[1749016673958,1.69269059,105360.0,105350.0,0.52103218]
[1749016674178,1.72329059,105360.0,105350.0,0.89911218]
[1749016674633,1.74106004,105360.0,105350.0,0.89911218]
[1749016674845,1.72329059,105360.0,105350.0,0.89911218]
[1749016675494,1.74105991,105360.0,105350.0,0.89911218]
[1749016675715,1.72329059,105360.0,105350.0,0.89911218]
[1749016677721,1.72555995,105360.0,105350.0,0.89911218]
[1749016677935,1.70779059,105360.0,105350.0,0.89911218]
[1749016679252,1.72555852,105360.0,105350.0,0.89911218]
[1749016679415,1.70779059,105360.0,105350.0,0.89911218]
[1749016680083,1.72555847,105360.0,105350.0,0.89911218]
[1749016680313,1.70779059,105360.0,105350.0,0.89911218]
[1749016680957,1.69268608,105360.0,105350.0,0.89911218]
[1749016682162,1.75820294,105360.0,105350.0,0.89911218]
[1749016682838,1.77597085,105360.0,105350.0,0.89911218]
[1749016683047,1.75820294,105360.0,105350.0,0.89911218]
[1749016683493,1.7759709,105360.0,105350.0,0.89911218]
[1749016683710,1.75820294,105360.0,105350.0,0.89911218]
[1749016684160,1.75820269,105360.0,105350.0,0.89911218]
[1749016685270,1.77597062,105360.0,105350.0,0.89911218]
[1749016685493,1.75820269,105360.0,105350.0,0.89911218]
[1749016685715,1.7759706,105360.0,105350.0,0.89911218]
[1749016685917,1.77597062,105360.0,105350.0,0.89911218]
[1749016686127,1.75820269,105360.0,105350.0,0.89911218]
[1749016686329,1.77597061,105360.0,105350.0,0.89911218]
[1749016686549,1.75820269,105360.0,105350.0,0.89911218]
[1749016687381,1.77597061,105360.0,105350.0,0.89911218]
[1749016687596,1.75820269,105360.0,105350.0,0.89911218]
[1749016687828,1.77597061,105360.0,105350.0,0.89911218]
[1749016688063,1.75820269,105360.0,105350.0,0.89911218]
[1749016688280,1.75830917,105360.0,105350.0,0.89911218]
[1749016690433,1.7760771,105360.0,105350.0,0.89911218]
[1749016690649,1.75830917,105360.0,105350.0,0.89911218]
[1749016690857,1.77607677,105360.0,105350.0,0.89911218]
[1749016691074,1.75830917,105360.0,105350.0,0.89911218]
[1749016691294,1.77607593,105360.0,105350.0,0.89911218]
[1749016691716,1.75830917,105360.0,105350.0,0.89911218]
[1749016692141,1.74921953,105360.0,105350.0,0.89911218]
[1749016692349,1.75830786,105360.0,105350.0,0.89911218]
[1749016692983,1.79383161,105360.0,105350.0,0.89911218]
[1749016693203,1.77607021,105360.0,105350.0,0.89911218]
[1749016693413,1.79380816,105360.0,105350.0,0.89911218]
[1749016693629,1.77604737,105360.0,105350.0,0.89911218]
[1749016693830,1.79380818,105360.0,105350.0,0.89911218]
[1749016694044,1.77604737,105360.0,105350.0,0.89911218]
[1749016695162,1.79380816,105360.0,105350.0,0.89911218]
[1749016695384,1.77604737,105360.0,105350.0,0.89911218]
[1749016695593,1.77604904,105360.0,105350.0,0.89911218]
[1749016696243,1.76695988,105360.0,105350.0,0.89911218]
[1749016696467,1.77604957,105360.0,105350.0,0.89899218]
[1749016697761,1.77605276,105360.0,105350.0,0.89899218]
[1749016698864,1.79381287,105360.0,105350.0,0.89899218]
[1749016699084,1.77605276,105360.0,105350.0,0.89899218]
[1749016700171,1.89359292,105360.0,105350.0,0.89899218]
[1749016700380,1.79381652,105360.0,105350.0,0.89899218]
[1749016700628,1.77605635,105360.0,105350.0,0.89899218]
[1749016702334,1.79381653,105360.0,105350.0,0.89899218]
[1749016702544,1.77605635,105360.0,105350.0,0.89899218]
[1749016703424,1.79381688,105360.0,105350.0,0.89899218]
[1749016703641,1.77605635,105360.0,105350.0,0.89899218]
[1749016703837,1.79381688,105360.0,105350.0,0.89899218]
[1749016704061,1.77605635,105360.0,105350.0,0.89899218]
[1749016704488,1.77607161,105360.0,105350.0,0.89899218]
[1749016704698,1.79383251,105360.0,105350.0,0.89899218]
[1749016704905,1.77607198,105360.0,105350.0,0.89899218]
[1749016705106,1.79383251,105360.0,105350.0,0.89899218]
[1749016705317,1.74253948,105360.0,105350.0,0.89899218]
[1749016707169,1.76029995,105360.0,105350.0,0.89899218]
[1749016707390,1.74253948,105360.0,105350.0,0.89899218]
[1749016709435,1.76029763,105360.0,105350.0,0.89899218]
[1749016709655,1.74253948,105360.0,105350.0,0.89899218]
[1749016709873,1.76029764,105360.0,105350.0,0.89899218]
[1749016710086,1.74253948,105360.0,105350.0,0.89899218]
[1749016710298,1.76029767,105360.0,105350.0,0.89899218]
[1749016710505,1.74253948,105360.0,105350.0,0.89899218]
[1749016710779,1.73344702,105360.0,105350.0,0.89899218]
[1749016711002,1.74253936,105360.0,105350.0,0.89899218]
[1749016711445,1.76029756,105360.0,105350.0,0.89899218]
[1749016711745,1.74253936,105360.0,105350.0,0.89899218]
[1749016712641,1.76029756,105360.0,105350.0,0.89899218]
[1749016712877,1.74253936,105360.0,105350.0,0.89899218]
[1749016713102,1.76029756,105360.0,105350.0,0.89899218]
[1749016713325,1.74253936,105360.0,105350.0,0.89899218]
[1749016713470,1.76029756,105360.0,105350.0,0.89899218]
[1749016713697,1.74253936,105360.0,105350.0,0.89899218]
[1749016714056,1.76029756,105360.0,105350.0,0.89899218]
[1749016714275,1.74253936,105360.0,105350.0,0.89899218]
[1749016714697,1.76029665,105360.0,105350.0,0.89899218]
[1749016714932,1.74253936,105360.0,105350.0,0.89899218]
[1749016715567,1.7602957,105360.0,105350.0,0.89899218]
[1749016715756,1.74253936,105360.0,105350.0,0.89899218]
[1749016715953,1.7602957,105360.0,105350.0,0.89899218]
[1749016716156,1.74253936,105360.0,105350.0,0.89899218]
[1749016716404,1.7602957,105360.0,105350.0,0.89899218]
[1749016716612,1.74253936,105360.0,105350.0,0.89899218]
[1749016716844,1.74256046,105360.0,105350.0,0.89899218]
[1749016717361,1.76031681,105360.0,105350.0,0.89899218]
[1749016717567,1.74256046,105360.0,105350.0,0.89899218]
[1749016717769,1.76031681,105360.0,105350.0,0.89899218]
[1749016717972,1.74256046,105360.0,105350.0,0.89899218]
[1749016718214,1.77516046,105360.0,105350.0,0.89895218]
[1749016718427,1.79291672,105360.0,105350.0,0.89895218]
[1749016718646,1.78652484,105360.0,105350.0,0.89895218]
[1749016719276,1.75392484,105360.0,105350.0,0.89895218]
[1749016719485,1.77486046,105360.0,105350.0,0.89895218]
[1749016719706,1.76962484,105360.0,105350.0,0.89895218]
[1749016720764,1.76963675,105360.0,105350.0,0.89895218]
[1749016720986,1.76963675,105360.0,105350.0,0.60963218]
[1749016721197,1.76963675,105360.0,105350.0,0.89895218]
[1749016722488,1.76963746,105360.0,105350.0,0.89895218]
[1749016723774,1.76963746,105360.0,105350.0,0.89891218]
[1749016723985,1.78739805,105360.0,105350.0,0.89891218]
[1749016724192,1.78739819,105360.0,105350.0,0.89891218]
[1749016724400,1.76963746,105360.0,105350.0,0.89891218]
[1749016724856,1.76963727,105360.0,105350.0,0.89891218]
[1749016726121,1.75393727,105360.0,105350.0,0.89891218]
[1749016726582,1.77169799,105360.0,105350.0,0.89891218]
[1749016727040,1.7894587,105360.0,105350.0,0.89891218]
[1749016727249,1.77169799,105360.0,105350.0,0.89891218]
[1749016728005,1.79611896,105360.0,105350.0,0.89891218]
[1749016728421,1.7894587,105360.0,105350.0,0.89891218]
[1749016728683,1.79611897,105360.0,105350.0,0.89891218]
[1749016728894,1.78945593,105360.0,105350.0,0.89891218]
[1749016729308,1.7961162,105360.0,105350.0,0.89891218]
[1749016729526,1.78945593,105360.0,105350.0,0.89891218]
[1749016729997,0.60194724,105360.0,105350.0,0.89891218]
[1749016730211,1.78945593,105360.0,105350.0,0.91471218]
[1749016730420,1.8072167,105360.0,105350.0,0.91471218]
[1749016730633,1.78945593,105360.0,105350.0,0.91471218]
[1749016731083,1.78945593,105360.0,105350.0,0.89891218]
[1749016732575,1.79611627,105360.0,105350.0,0.89891218]
[1749016732791,1.76899725,105360.0,105350.0,0.89891218]
[1749016733014,1.813876,105360.0,105350.0,0.89891218]
[1749016733244,1.78945474,105360.0,105350.0,0.89891218]
[1749016734011,1.80721568,105360.0,105350.0,0.89891218]
[1749016734250,1.81387603,105360.0,105350.0,0.89891218]
[1749016734463,1.80721568,105360.0,105350.0,0.89891218]
[1749016734677,1.78945474,105360.0,105350.0,0.89891218]
[1749016734867,1.79611508,105360.0,105350.0,0.89891218]
[1749016735603,1.81387601,105360.0,105350.0,0.89891218]
[1749016735816,1.78945474,105360.0,105350.0,0.89891218]
[1749016736663,1.80721567,105360.0,105350.0,0.89891218]
[1749016736884,1.78945456,105360.0,105350.0,0.89891218]
[1749016737835,1.80721547,105360.0,105350.0,0.89891218]
[1749016738025,1.8138758,105360.0,105350.0,0.89891218]
[1749016738199,1.79611489,105360.0,105350.0,0.91511218]
[1749016738396,1.81387579,105360.0,105350.0,0.91511218]
[1749016738598,1.79611489,105360.0,105350.0,0.91511218]
[1749016738800,1.80721546,105360.0,105350.0,0.91511218]
[1749016739003,1.78945456,105360.0,105350.0,0.91511218]
[1749016739202,1.80721544,105360.0,105350.0,0.91511218]
[1749016739373,1.78945456,105360.0,105350.0,0.91511218]
[1749016739729,1.79611489,105360.0,105350.0,0.91511218]
[1749016740667,1.78475006,105360.0,105350.0,0.91511218]
[1749016740878,1.8138762,105360.0,105350.0,0.91511218]
[1749016741137,1.79611529,105360.0,105350.0,0.91511218]
[1749016741560,1.80277563,105360.0,105350.0,0.91511218]
[1749016742000,1.79611529,105360.0,105350.0,0.91511218]
[1749016742802,1.82053651,105360.0,105350.0,0.91511218]
[1749016743226,1.80277562,105360.0,105350.0,0.91511218]
[1749016743589,1.81387618,105360.0,105350.0,0.91511218]
[1749016743727,1.7961156,105360.0,105350.0,0.91511218]
[1749016743924,1.80277593,105360.0,105350.0,0.91511218]
[1749016744156,1.7961156,105360.0,105350.0,0.91511218]
[1749016745005,3.21999677,105360.0,105330.0,0.04602848]
[1749016745297,0.11039515,105350.0,105340.0,0.2892]
[1749016745498,0.15160092,105350.0,105340.0,0.2892]
[1749016745704,0.19784704,105350.0,105340.0,0.2892]
[1749016746047,0.19784707,105350.0,105340.0,0.2892]
[1749016746266,1.36759761,105350.0,105340.0,0.2892]
[1749016746461,1.37425692,105350.0,105340.0,0.001]
[1749016746658,1.36759761,105350.0,105340.0,0.2892]
[1749016746862,1.37896347,105350.0,105340.0,0.2892]
[1749016747090,1.38662215,105350.0,105340.0,0.2892]
[1749016747263,1.38196347,105350.0,105340.0,0.2892]
[1749016747885,1.38193233,105350.0,105340.0,0.2892]
[1749016748084,1.38859103,105350.0,105340.0,0.2892]
[1749016748281,1.40634757,105350.0,105340.0,0.2892]
[1749016748672,0.34,105340.0,105330.0,0.06085839]
[1749016748882,1.31998142,105340.0,105330.0,0.35009839]
[1749016749095,1.30222469,105340.0,105330.0,0.35009839]
[1749016749299,1.33071269,105340.0,105330.0,0.35009839]
[1749016749938,1.34946815,105340.0,105330.0,0.95857839]
[1749016750193,1.33171269,105340.0,105330.0,0.95857839]
[1749016750421,0.54004023,105340.0,105330.0,0.95857839]
[1749016750622,1.33171269,105340.0,105330.0,0.95957839]
[1749016751341,1.3494658,105340.0,105330.0,0.95957839]
[1749016751548,1.33171269,105340.0,105330.0,0.95957839]
[1749016751970,1.33165128,105340.0,105330.0,0.95957839]
[1749016752810,1.34940473,105340.0,105330.0,0.95957839]
[1749016753023,1.33165128,105340.0,105330.0,0.95957839]
[1749016753235,1.72748751,105340.0,105330.0,0.94474848]
[1749016753662,1.74523531,105340.0,105330.0,0.94474848]
[1749016753865,1.72748182,105340.0,105330.0,0.94470848]
[1749016754597,1.74523508,105340.0,105330.0,0.94470848]
[1749016754824,1.72748182,105340.0,105330.0,0.94470848]
[1749016755225,1.74523508,105340.0,105330.0,0.94470848]
[1749016755431,1.72748182,105340.0,105330.0,0.94470848]
[1749016755724,1.74523508,105340.0,105330.0,0.94470848]
[1749016755925,1.65285099,105340.0,105330.0,0.94470848]
[1749016756127,1.74522101,105340.0,105330.0,0.94470848]
[1749016756369,1.72746756,105340.0,105330.0,0.94470848]
[1749016758808,1.66192323,105340.0,105330.0,0.94470848]
[1749016759217,1.67967683,105340.0,105330.0,0.94470848]
[1749016759413,1.66192323,105340.0,105330.0,0.94470848]
[1749016759678,1.65285099,105340.0,105330.0,0.94470848]
[1749016759886,1.72745686,105340.0,105330.0,0.94470848]
[1749016760682,1.74521047,105340.0,105330.0,0.94470848]
[1749016760917,1.72745686,105340.0,105330.0,0.94470848]
[1749016761469,1.74521046,105340.0,105330.0,0.94470848]
[1749016761674,1.72745686,105340.0,105330.0,0.94470848]
[1749016762070,1.7452103,105340.0,105330.0,0.94470848]
[1749016762280,1.72745686,105340.0,105330.0,0.94470848]
[1749016762497,1.74521031,105340.0,105330.0,0.94470848]
[1749016762720,1.72745686,105340.0,105330.0,0.94470848]
[1749016763138,1.7452103,105340.0,105330.0,0.94470848]
[1749016763363,1.72745686,105340.0,105330.0,0.94470848]
[1749016763580,1.66192266,105340.0,105330.0,0.94470848]
[1749016764052,1.66192327,105340.0,105330.0,0.94470848]
[1749016766923,1.67967592,105340.0,105330.0,0.94470848]
[1749016767131,1.66192327,105340.0,105330.0,0.94470848]
[1749016768530,1.67967463,105340.0,105330.0,0.94470848]
[1749016768736,1.66192327,105340.0,105330.0,0.94470848]
[1749016769423,1.67967465,105340.0,105330.0,0.94470848]
[1749016769591,1.66192327,105340.0,105330.0,0.94470848]
[1749016769767,1.66192633,105340.0,105330.0,0.94470848]
[1749016771769,1.66192616,105340.0,105330.0,0.94470848]
[1749016772346,1.72744374,105340.0,105330.0,0.94470848]
[1749016772727,1.74519277,105340.0,105330.0,0.94470848]
[1749016772933,1.67967333,105340.0,105330.0,0.94470848]
[1749016773137,1.67967137,105340.0,105330.0,0.94470848]
[1749016773339,1.66192616,105340.0,105330.0,0.94470848]
[1749016773545,1.72743602,105340.0,105330.0,0.94470848]
[1749016774730,1.74518082,105340.0,105330.0,0.94470848]
[1749016774885,1.72743602,105340.0,105330.0,0.94470848]
[1749016775292,1.74518082,105340.0,105330.0,0.94470848]
[1749016775490,1.72743696,105340.0,105330.0,0.94470848]
[1749016776366,1.74518176,105340.0,105330.0,0.94470848]
[1749016777356,1.74518144,105340.0,105330.0,0.94470848]
[1749016777644,1.72743696,105340.0,105330.0,0.94470848]
[1749016777897,1.74518141,105340.0,105330.0,0.94470848]
[1749016778147,1.74518143,105340.0,105330.0,0.91342848]
[1749016778400,1.74518136,105340.0,105330.0,0.91342848]
[1749016779131,1.74518135,105340.0,105330.0,0.91342848]
[1749016779356,1.74518136,105340.0,105330.0,0.91342848]
[1749016779573,1.72743696,105340.0,105330.0,0.91342848]
[1749016779800,1.727439,105340.0,105330.0,0.91342848]
[1749016780007,1.727439,105340.0,105330.0,0.92952848]
[1749016780219,1.74518456,105340.0,105330.0,0.92952848]
[1749016780882,1.727439,105340.0,105330.0,0.92952848]
[1749016782235,1.74518379,105340.0,105330.0,0.92952848]
[1749016782442,1.727439,105340.0,105330.0,0.92952848]
[1749016783349,1.74518359,105340.0,105330.0,0.92952848]
[1749016783559,1.74518361,105340.0,105330.0,0.92952848]
[1749016783768,1.74521513,105340.0,105330.0,0.92952848]
[1749016783946,1.74521466,105340.0,105330.0,0.92952848]
[1749016784174,1.72747052,105340.0,105330.0,0.94462848]
[1749016785777,1.74521465,105340.0,105330.0,0.94462848]
[1749016786182,1.72747052,105340.0,105330.0,0.94462848]
[1749016786397,1.74521465,105340.0,105330.0,0.94462848]
[1749016786658,1.72747052,105340.0,105330.0,0.94462848]
[1749016787008,1.74521506,105340.0,105330.0,0.94462848]
[1749016787202,1.72747052,105340.0,105330.0,0.94462848]
[1749016787607,1.74521482,105340.0,105330.0,0.94462848]
[1749016787806,1.74521488,105340.0,105330.0,0.94462848]
[1749016788563,1.72747058,105340.0,105330.0,0.94462848]
[1749016788697,1.7452147,105340.0,105330.0,0.94462848]
[1749016789309,1.74521368,105340.0,105330.0,0.94462848]
[1749016790147,1.74521399,105340.0,105330.0,0.94462848]
[1749016791230,1.74521323,105340.0,105330.0,0.94462848]
[1749016791431,1.74521322,105340.0,105330.0,0.94462848]
[1749016791842,1.74528099,105340.0,105330.0,0.94462848]
[1749016792087,1.72753834,105340.0,105330.0,0.94462848]
[1749016792640,1.74528098,105340.0,105330.0,0.94462848]
[1749016793058,1.72753834,105340.0,105330.0,0.94462848]
[1749016793266,1.74528067,105340.0,105330.0,0.94462848]
[1749016793461,1.74528026,105340.0,105330.0,0.94462848]
[1749016793661,1.72753834,105340.0,105330.0,0.92952848]
[1749016794061,1.74528029,105340.0,105330.0,0.92952848]
[1749016794439,1.72753834,105340.0,105330.0,0.92952848]
[1749016795891,1.72754671,105340.0,105330.0,0.92952848]
[1749016796749,1.71680028,105340.0,105330.0,0.92952848]
[1749016796963,1.69905871,105340.0,105330.0,0.92952848]
[1749016797171,1.71680025,105340.0,105330.0,0.92952848]
[1749016797386,1.69905871,105340.0,105330.0,0.92952848]
[1749016798436,1.71679981,105340.0,105330.0,0.92952848]
[1749016798666,1.71679879,105340.0,105330.0,0.92952848]
[1749016798883,1.69905871,105340.0,105330.0,0.92952848]
[1749016799579,1.716798,105340.0,105330.0,0.92952848]
[1749016799815,1.62436299,105340.0,105330.0,0.92952848]
[1749016800040,1.69904753,105340.0,105330.0,0.92952848]
[1749016801386,1.69904753,105340.0,105330.0,0.9147]
[1749016802441,1.71678628,105340.0,105330.0,0.9147]
[1749016802666,1.69904753,105340.0,105330.0,0.9147]
[1749016803332,1.71678625,105340.0,105330.0,0.9147]
[1749016803616,1.69904753,105340.0,105330.0,0.9147]
[1749016804343,1.69904753,105340.0,105330.0,0.9309]
[1749016804836,1.71678525,105340.0,105330.0,0.9309]
[1749016805073,0.79267246,105340.0,105330.0,0.9309]
[1749016808486,0.001,105340.0,105330.0,0.9309]
[1749016808902,0.39683623,105340.0,105330.0,0.9309]
[1749016809308,0.39683623,105340.0,105330.0,0.94572837]
[1749016812114,0.38200771,105340.0,105330.0,0.94572837]
[1749016816086,0.38200771,105340.0,105330.0,0.40788837]
[1749016817369,0.38200771,105340.0,105330.0,0.42364837]
[1749016819908,0.38200771,105340.0,105330.0,0.94264837]
[1749016821178,0.38200771,105340.0,105330.0,0.94260837]
[1749016827824,0.77784394,105340.0,105330.0,0.94260837]
[1749016829142,0.77784394,105340.0,105330.0,0.94256837]
[1749016831074,0.39583623,105340.0,105330.0,0.94256837]
[1749016840201,0.39583623,105340.0,105330.0,0.92624837]
[1749016841246,0.39583623,105340.0,105330.0,0.94214837]
[1749016847684,0.44467369,105350.0,105330.0,0.94214837]
[1749016847902,0.44467369,105350.0,105340.0,0.08824]
[1749016848324,0.46241089,105350.0,105340.0,0.08824]
[1749016848527,0.46241076,105350.0,105340.0,0.08824]
[1749016848670,0.44467369,105350.0,105340.0,0.08824]
[1749016848865,0.44567369,105350.0,105340.0,0.08824]
[1749016849069,0.46341085,105350.0,105340.0,0.08824]
[1749016849293,0.44467369,105350.0,105340.0,0.08824]
[1749016849628,0.44667369,105350.0,105340.0,0.08824]
[1749016849785,0.46441085,105350.0,105340.0,0.08824]
[1749016849993,0.44667369,105350.0,105340.0,0.08824]
[1749016850406,0.44767369,105350.0,105330.0,0.56510837]
[1749016850605,0.44767369,105350.0,105340.0,0.377]
[1749016850807,0.46541084,105350.0,105340.0,0.377]
[1749016851008,0.44767369,105350.0,105340.0,0.377]
[1749016851477,0.463411,105350.0,105340.0,0.377]
[1749016851697,0.44667369,105350.0,105340.0,0.377]
[1749016852382,0.44567369,105350.0,105340.0,0.377]
[1749016852591,0.44767369,105350.0,105340.0,0.377]
[1749016852786,0.46541099,105350.0,105340.0,0.377]
[1749016853003,0.44767369,105350.0,105340.0,0.62284]
[1749016854150,0.46541096,105350.0,105340.0,0.62284]
[1749016854385,0.44767369,105350.0,105340.0,0.62284]
[1749016856282,0.46541094,105350.0,105340.0,0.62284]
[1749016856498,0.44767369,105350.0,105340.0,0.62284]
[1749016857314,0.46541062,105350.0,105340.0,0.62284]
[1749016857470,0.44767369,105350.0,105340.0,0.62284]
[1749016857671,0.44767369,105350.0,105340.0,0.6228]
[1749016857912,0.44767369,105350.0,105340.0,0.89596]
[1749016858872,0.46540872,105350.0,105340.0,0.89596]
[1749016859071,0.46540875,105350.0,105340.0,0.89596]
[1749016859272,0.44767369,105350.0,105340.0,0.89596]
[1749016859657,0.44767369,105350.0,105340.0,0.60724]
[1749016859928,0.44767369,105350.0,105340.0,0.89596]
[1749016860141,0.46540892,105350.0,105340.0,0.89596]
[1749016860352,0.44767369,105350.0,105340.0,0.89596]
[1749016860773,0.46540891,105350.0,105340.0,0.89596]
[1749016861189,0.44767369,105350.0,105340.0,0.89596]
[1749016861602,0.4654089,105350.0,105340.0,0.89596]
[1749016861805,0.44767369,105350.0,105340.0,0.89596]
[1749016862411,0.4654089,105350.0,105340.0,0.89596]
[1749016862634,0.44767369,105350.0,105340.0,0.89596]
[1749016863457,0.4654096,105350.0,105340.0,0.89596]
[1749016863591,0.44767369,105350.0,105340.0,0.89596]
[1749016864984,0.05183746,105350.0,105340.0,0.89596]
[1749016865174,0.41657369,105350.0,105340.0,0.89596]
[1749016867467,0.43430959,105350.0,105340.0,0.89596]
[1749016867673,0.41657369,105350.0,105340.0,0.89596]
[1749016868102,0.43430959,105350.0,105340.0,0.89596]
[1749016868311,0.41657369,105350.0,105340.0,0.89596]
[1749016869570,0.43430932,105350.0,105340.0,0.89596]
[1749016869794,0.41657369,105350.0,105340.0,0.89596]
[1749016878143,0.41385369,105350.0,105340.0,0.89596]
[1749016879793,0.01801746,105350.0,105340.0,0.89596]
[1749016879999,0.41385369,105350.0,105340.0,0.89596]
[1749016880630,0.01801746,105350.0,105340.0,0.89596]
[1749016880839,0.41385369,105350.0,105340.0,0.89596]
[1749016886486,0.01801746,105350.0,105340.0,0.89596]
[1749016886695,0.41385369,105350.0,105340.0,0.89596]
[1749016887663,0.41385369,105350.0,105340.0,0.89584]
[1749016888246,0.01801746,105350.0,105340.0,0.89584]
[1749016888473,0.41385369,105350.0,105340.0,0.89584]
[1749016895794,0.01801746,105350.0,105340.0,0.89584]
[1749016896034,0.41385369,105350.0,105340.0,0.89584]
[1749016908980,0.41385369,105350.0,105340.0,0.92834]
[1749016909203,0.01801746,105350.0,105340.0,1.32417623]
[1749016909431,0.01701746,105350.0,105340.0,1.32417623]
[1749016909691,0.01501746,105350.0,105340.0,1.32417623]
[1749016909937,0.01601746,105350.0,105340.0,1.32517623]
[1749016910173,0.01601746,105350.0,105340.0,1.32417623]
[1749016910413,0.01601746,105350.0,105340.0,1.32517623]
[1749016910850,0.01601746,105350.0,105340.0,0.64074]
[1749016911088,0.01601746,105350.0,105340.0,0.92926]
[1749016917763,0.01601746,105350.0,105340.0,1.32509623]
[1749016919455,0.01601746,105350.0,105340.0,1.81678676]
[1749016919700,0.01601746,105350.0,105340.0,1.42095053]
[1749016921015,0.01601746,105350.0,105340.0,1.41995053]
[1749016921436,0.01501746,105350.0,105340.0,1.42195053]
[1749016921653,0.01601746,105350.0,105340.0,1.42395053]
[1749016923129,0.00118964,105350.0,105340.0,1.42395053]
[1749016925060,0.00118964,105350.0,105340.0,1.15079053]
[1749016925338,0.00118964,105350.0,105340.0,0.90495053]
[1749016925554,0.00118964,105350.0,105340.0,1.15671053]
[1749016925741,0.00118964,105350.0,105340.0,1.55254676]
[1749016926208,0.00118964,105350.0,105340.0,1.15671053]
[1749016928250,0.00118964,105350.0,105340.0,1.55254676]
[1749016928465,0.00118964,105350.0,105340.0,0.7608743]
[1749016928674,0.00118964,105350.0,105340.0,1.15671053]
[1749016929958,0.00118964,105350.0,105340.0,1.76367053]
[1749016932407,0.00118964,105350.0,105340.0,1.49055053]
[1749016936333,0.00118964,105350.0,105340.0,1.24475053]
[1749016936551,0.00118964,105350.0,105340.0,0.4723543]
[1749016936764,0.00118964,105350.0,105340.0,1.15659053]
[1749016938864,0.00118964,105350.0,105340.0,0.86819053]
[1749016938963,0.00118964,105350.0,105340.0,1.15659053]
[1749016939203,0.00118964,105350.0,105340.0,1.64309053]
[1749016940010,0.00118964,105350.0,105340.0,2.25005053]
[1749016942691,0.00118964,105350.0,105340.0,1.97693053]
[1749016944872,0.00118964,105350.0,105340.0,1.73113053]
[1749016945302,0.00118964,105350.0,105340.0,1.64069053]